bitfinex/quotes_BTCUSD_20250331
["timestamp","ask_amount","ask_price","bid_price","bid_amount"]
[1743413776758,0.56693077,81598.0,81597.0,0.16898562]
[1743413776988,0.56693077,81598.0,81597.0,0.15396]
[1743413777688,0.57823054,81598.0,81597.0,0.15396]
[1743413777866,0.60083052,81598.0,81597.0,0.15396]
[1743413778703,0.34347152,81598.0,81597.0,0.51935183]
[1743413778905,0.34347152,81598.0,81597.0,0.53160683]
[1743413778906,0.33420044,81598.0,81597.0,0.53160683]
[1743413779079,0.33420044,81598.0,81597.0,0.62175927]
[1743413779282,0.03420044,81598.0,81597.0,0.63630012]
[1743413780055,0.01160046,81598.0,81597.0,0.63630012]
[1743413780250,0.00030069,81598.0,81597.0,0.67970012]
[1743413780671,0.00030069,81598.0,81597.0,0.68470012]
[1743413781183,0.00030069,81598.0,81597.0,0.68070012]
[1743413781382,0.00030069,81598.0,81597.0,0.68570012]
[1743413781996,6.9e-07,81598.0,81597.0,0.68570012]
[1743413782392,6.9e-07,81598.0,81597.0,0.53474012]
[1743413782615,6.9e-07,81598.0,81597.0,0.53574012]
[1743413783175,6.9e-07,81598.0,81597.0,0.68182012]
[1743413783361,6.9e-07,81598.0,81597.0,0.68782012]
[1743413783737,6.9e-07,81598.0,81597.0,0.68778012]
[1743413784325,6.9e-07,81598.0,81597.0,0.68178012]
[1743413785891,6.9e-07,81598.0,81597.0,0.49434012]
[1743413786097,6.9e-07,81598.0,81597.0,0.64042012]
[1743413786519,6.9e-07,81598.0,81597.0,0.62587927]
[1743413786674,6.9e-07,81598.0,81597.0,0.64042012]
[1743413788482,6.9e-07,81598.0,81597.0,1.25002012]
[1743413789584,6.9e-07,81598.0,81597.0,1.24402012]
[1743413790216,6.9e-07,81598.0,81597.0,0.94294012]
[1743413790422,6.9e-07,81598.0,81597.0,1.08906012]
[1743413791319,6.9e-07,81598.0,81597.0,1.09506012]
[1743413791531,6.9e-07,81598.0,81597.0,1.10006012]
[1743413792694,6.9e-07,81598.0,81597.0,1.09406012]
[1743413792995,6.9e-07,81598.0,81597.0,1.08806012]
[1743413793183,6.9e-07,81598.0,81597.0,1.09406012]
[1743413793401,6.9e-07,81598.0,81597.0,1.10006012]
[1743413793800,6.9e-07,81598.0,81597.0,1.09406012]
[1743413794225,6.9e-07,81598.0,81597.0,1.10006012]
[1743413794574,6.9e-07,81598.0,81597.0,1.09406012]
[1743413794775,6.9e-07,81598.0,81597.0,1.10006012]
[1743413795380,6.9e-07,81598.0,81597.0,0.94894012]
[1743413795679,6.9e-07,81598.0,81597.0,1.09978012]
[1743413796908,6.9e-07,81598.0,81597.0,1.09378012]
[1743413797351,6.9e-07,81598.0,81597.0,1.09978012]
[1743413797543,6.9e-07,81598.0,81597.0,1.09378012]
[1743413797749,6.9e-07,81598.0,81597.0,1.08778012]
[1743413797980,6.9e-07,81598.0,81597.0,1.09378012]
[1743413798230,0.004,81639.0,81617.0,0.15]
[1743413798425,0.00520027,81636.0,81635.0,0.39206668]
[1743413798632,0.00520027,81636.0,81635.0,1.76188295]
[1743413799046,0.00520027,81636.0,81635.0,1.7757183]
[1743413800336,0.01744927,81636.0,81635.0,1.50393645]
[1743413800567,0.56243827,81636.0,81635.0,1.50389645]
[1743413801020,0.56243827,81636.0,81635.0,0.28052018]
[1743413801220,0.56243827,81636.0,81635.0,0.29052018]
[1743413802814,0.56243827,81636.0,81635.0,0.01883535]
[1743413803017,0.61183827,81636.0,81635.0,0.16507535]
[1743413803222,0.61183827,81636.0,81635.0,0.15424]
[1743413803575,0.61183827,81636.0,81635.0,0.15124]
[1743413803991,0.61183827,81636.0,81635.0,0.15224]
[1743413804197,0.61183827,81636.0,81635.0,0.14724]
[1743413804397,0.61183827,81636.0,81635.0,0.15024]
[1743413804844,0.61183827,81636.0,81635.0,0.14724]
[1743413805041,0.61183827,81636.0,81635.0,0.14824]
[1743413811863,0.61183827,81636.0,81635.0,0.14421846]
[1743413812512,0.61183827,81636.0,81635.0,0.001]
[1743413813013,1.02523827,81636.0,81635.0,0.001]
[1743413814067,1.04442117,81636.0,81635.0,0.001]
[1743413815080,1.04442117,81636.0,81618.0,0.63616]
[1743413815279,1.04442117,81636.0,81618.0,0.78172]
[1743413815280,0.687492,81619.0,81618.0,0.78172]
[1743413815480,0.687492,81619.0,81618.0,0.63616]
[1743413815687,0.557295,81618.0,81617.0,0.14556]
[1743413815896,0.245095,81601.0,81599.0,1.22337627]
[1743413816113,0.245095,81601.0,81600.0,0.26600483]
[1743413816314,0.24509,81603.0,81600.0,0.26600483]
[1743413817017,0.245076,81608.0,81602.0,0.012254]
[1743413817240,8.652e-05,81609.0,81607.0,0.245075]
[1743413817419,8.652e-05,81609.0,81608.0,0.37761183]
[1743413817938,8.652e-05,81609.0,81608.0,1.6009881]
[1743413818347,8.652e-05,81609.0,81608.0,1.5887351]
[1743413818836,0.24515752,81609.0,81608.0,1.3466611]
[1743413819249,0.25741052,81609.0,81608.0,0.26884483]
[1743413819861,0.25741052,81609.0,81608.0,0.28279336]
[1743413820032,0.55741052,81609.0,81608.0,0.01694853]
[1743413820233,0.55741052,81609.0,81608.0,0.16546853]
[1743413820456,0.55741052,81609.0,81608.0,0.15152]
[1743413821036,0.55741052,81609.0,81608.0,0.14852]
[1743413821242,0.55741052,81609.0,81608.0,0.003]
[1743413821449,0.55741052,81609.0,81608.0,0.14956]
[1743413821942,0.55741052,81609.0,81608.0,0.001]
[1743413821943,0.97081052,81609.0,81608.0,0.001]
[1743413822162,0.99339216,81609.0,81608.0,0.001]
[1743413822517,1.00467685,81609.0,81608.0,0.002]
[1743413822714,0.99967685,81609.0,81608.0,0.002]
[1743413822925,0.99967685,81609.0,81608.0,0.001]
[1743413823326,0.99967685,81609.0,81608.0,0.002]
[1743413823506,1.07927685,81609.0,81608.0,0.002]
[1743413824294,1.07927685,81609.0,81608.0,1e-06]
[1743413825296,1.19956168,81609.0,81608.0,1e-06]
[1743413825496,0.012258,81575.0,81574.0,0.10990911]
[1743413825764,0.557431,81575.0,81574.0,0.38986247]
[1743413826351,0.56991878,81575.0,81574.0,0.12385764]
[1743413826553,0.56991878,81575.0,81574.0,0.26949764]
[1743413826755,0.57925947,81575.0,81574.0,0.26958416]
[1743413827637,0.57925947,81575.0,81574.0,0.12394416]
[1743413828826,0.99265947,81575.0,81574.0,0.01403505]
[1743413829256,0.99265947,81575.0,81574.0,0.01603505]
[1743413829780,0.99265947,81575.0,81574.0,8.652e-05]
[1743413830388,1.01185465,81575.0,81574.0,8.652e-05]
[1743413831977,1.01285465,81575.0,81574.0,8.652e-05]
[1743413833665,1.0352586,81575.0,81574.0,8.652e-05]
[1743413835109,1.1113586,81575.0,81574.0,5.2e-07]
[1743413835290,1.1563586,81575.0,81574.0,5.2e-07]
[1743413835650,1.16755943,81575.0,81574.0,5.2e-07]
[1743413835855,1.09045943,81575.0,81574.0,5.2e-07]
[1743413836081,1.12629338,81575.0,81574.0,5.2e-07]
[1743413836217,1.12829338,81575.0,81574.0,5.2e-07]
[1743413836822,1.08329338,81575.0,81574.0,5.2e-07]
[1743413837407,1.0640982,81575.0,81574.0,5.2e-07]
[1743413837817,1.0650982,81575.0,81574.0,0.05000052]
[1743413838337,1.05389737,81575.0,81574.0,0.05000052]
[1743413838950,1.01806342,81575.0,81574.0,0.05000052]
[1743413840418,1.03726026,81575.0,81574.0,0.05000052]
[1743413840617,1.03726026,81575.0,81550.0,0.63632]
[1743413840618,0.257507,81551.0,81550.0,0.63632]
[1743413840818,0.257507,81551.0,81550.0,0.79794066]
[1743413840997,0.557507,81551.0,81550.0,0.79794066]
[1743413841366,0.557507,81551.0,81550.0,0.79814066]
[1743413841567,0.557507,81551.0,81550.0,0.65106066]
[1743413841797,0.557507,81551.0,81550.0,0.80014066]
[1743413842001,0.557507,81551.0,81550.0,0.80514066]
[1743413842784,0.557507,81551.0,81550.0,0.80538066]
[1743413843333,0.57994482,81551.0,81550.0,0.80538066]
[1743413843559,0.57994482,81551.0,81550.0,0.80338066]
[1743413843756,0.57994482,81551.0,81550.0,0.79838066]
[1743413844159,0.57994482,81551.0,81550.0,0.80138066]
[1743413844358,0.57994482,81551.0,81550.0,0.80338066]
[1743413844562,0.57994482,81551.0,81550.0,0.80038066]
[1743413844761,0.59117029,81551.0,81550.0,0.80038066]
[1743413844966,0.59117029,81551.0,81550.0,0.80238066]
[1743413846983,0.59117029,81551.0,81550.0,1.16791349]
[1743413846984,0.33366329,81551.0,81550.0,1.16791349]
[1743413847421,0.33366329,81551.0,81550.0,0.92266549]
[1743413847740,0.59117029,81551.0,81550.0,0.92266549]
[1743413848155,0.57994482,81551.0,81550.0,0.92266549]
[1743413848332,0.57994482,81551.0,81550.0,0.28634549]
[1743413849687,0.59795143,81551.0,81550.0,0.28634549]
[1743413850602,0.60920626,81551.0,81550.0,0.28634549]
[1743413851403,0.64522249,81551.0,81550.0,0.28634549]
[1743413851604,0.38771549,81551.0,81550.0,0.28634549]
[1743413851828,0.63296049,81551.0,81550.0,0.28634549]
[1743413852023,0.38771549,81551.0,81550.0,0.54385549]
[1743413852227,0.38771549,81551.0,81550.0,0.68719634]
[1743413852579,0.08771549,81551.0,81550.0,0.68719634]
[1743413852777,0.05845405,81551.0,81550.0,0.68719634]
[1743413853256,0.05845405,81551.0,81550.0,0.68319634]
[1743413853487,0.05845405,81551.0,81550.0,0.41514549]
[1743413853666,0.245244,81552.0,81550.0,0.41914549]
[1743413853866,0.245239,81553.0,81551.0,0.12028483]
[1743413854303,0.545239,81553.0,81552.0,0.01439419]
[1743413854487,0.5575,81553.0,81552.0,0.13467902]
[1743413855269,0.55652529,81553.0,81552.0,0.13467902]
[1743413856909,0.33387884,81553.0,81552.0,0.38292102]
[1743413857312,0.33387884,81553.0,81552.0,0.38692102]
[1743413857754,0.33387884,81553.0,81552.0,0.14167902]
[1743413858319,0.57911784,81553.0,81552.0,0.14167902]
[1743413858518,0.59137884,81553.0,81552.0,0.14167902]
[1743413858745,0.33387884,81553.0,81552.0,0.14167902]
[1743413859346,0.59137884,81553.0,81552.0,0.14167902]
[1743413860422,0.59137884,81553.0,81552.0,0.02139419]
[1743413860619,0.59137884,81553.0,81552.0,0.15452]
[1743413862308,0.59137884,81553.0,81552.0,0.15052]
[1743413862511,0.59137884,81553.0,81552.0,0.15152]
[1743413862707,0.59137884,81553.0,81552.0,0.001]
[1743413862907,0.59137884,81553.0,81552.0,0.002]
[1743413863109,0.59137884,81553.0,81552.0,0.14924]
[1743413864634,0.59137884,81553.0,81552.0,0.002]
[1743413865854,0.59137884,81553.0,81552.0,0.001]
[1743413866058,0.557504,81552.0,81551.0,0.14768]
[1743413866579,0.557507,81551.0,81550.0,0.00047039]
[1743413866981,0.557507,81551.0,81550.0,0.14799039]
[1743413867389,0.56879329,81551.0,81550.0,0.14799039]
[1743413867945,0.59138584,81551.0,81550.0,0.14799039]
[1743413869196,0.59138584,81551.0,81550.0,0.14899039]
[1743413869398,0.59138584,81551.0,81550.0,0.14999039]
[1743413870572,0.61058671,81551.0,81550.0,0.14999039]
[1743413871383,0.61058671,81551.0,81550.0,0.00247039]
[1743413871581,0.63095662,81538.0,81537.0,1.19634957]
[1743413871808,0.545347,81517.0,81511.0,0.25842911]
[1743413871986,0.545347,81517.0,81511.0,0.10990911]
[1743413871987,0.557614,81517.0,81511.0,0.10990911]
[1743413872324,0.557614,81517.0,81514.0,0.14872]
[1743413872500,0.56890029,81517.0,81507.0,0.02]
[1743413872793,0.56890029,81517.0,81516.0,0.15068]
[1743413873451,0.56890029,81517.0,81516.0,0.003]
[1743413873653,0.56937077,81517.0,81516.0,0.003]
[1743413873800,0.60409687,81517.0,81516.0,0.004]
[1743413874003,0.34648287,81517.0,81516.0,0.004]
[1743413874206,0.34648287,81517.0,81516.0,0.00302097]
[1743413874776,0.60409687,81517.0,81516.0,0.15294097]
[1743413874980,0.59182987,81517.0,81516.0,0.15294097]
[1743413875182,0.32389032,81517.0,81516.0,0.15294097]
[1743413875670,0.31260403,81517.0,81516.0,0.15294097]
[1743413875877,0.31260403,81517.0,81516.0,0.6119428]
[1743413876516,0.31260403,81517.0,81516.0,0.3543258]
[1743413876720,0.31260403,81517.0,81516.0,0.5996758]
[1743413876928,0.31260403,81517.0,81516.0,0.6119428]
[1743413877127,0.00047048,81517.0,81516.0,0.5996758]
[1743413877303,0.00047048,81517.0,81516.0,0.6119428]
[1743413877447,0.00047048,81517.0,81516.0,0.3543258]
[1743413878344,0.24581748,81517.0,81516.0,0.3543258]
[1743413878555,0.24581748,81517.0,81516.0,0.2732258]
[1743413878757,0.25785743,81517.0,81516.0,0.2732258]
[1743413879426,0.57012443,81517.0,81516.0,0.15016]
[1743413879787,0.57012443,81517.0,81516.0,0.1472249]
[1743413879983,0.012268,81510.0,81502.0,1.46876627]
[1743413880188,0.245377,81508.0,81503.0,0.28267183]
[1743413880618,0.3,81510.0,81503.0,0.28267183]
[1743413880890,0.245369,81510.0,81503.0,0.52805983]
[1743413881180,0.245383,81506.0,81504.0,0.1504]
[1743413881394,0.245377,81507.0,81504.0,0.1504]
[1743413881606,0.245372,81509.0,81504.0,0.1504]
[1743413881822,0.3,81510.0,81505.0,0.012147]
[1743413881969,0.3,81510.0,81509.0,0.245371]
[1743413882175,0.3,81510.0,81509.0,0.257639]
[1743413882379,0.3,81510.0,81509.0,0.338939]
[1743413882586,0.4134,81514.0,81510.0,0.257635]
[1743413882790,0.245359,81513.0,81509.0,0.01226601]
[1743413883005,0.012268,81510.0,81505.0,0.001]
[1743413883325,0.4134,81514.0,81506.0,0.162829]
[1743413883501,0.245364,81512.0,81506.0,0.15056]
[1743413883706,0.012267,81519.0,81506.0,0.15056]
[1743413883707,0.4134,81527.0,81516.0,0.012267]
[1743413883917,0.012264,81536.0,81516.0,1.48099327]
[1743413884082,0.00047048,81517.0,81516.0,1.60329327]
[1743413884477,0.00047048,81517.0,81516.0,0.542477]
[1743413884719,0.00047048,81517.0,81516.0,0.40514483]
[1743413884922,0.01273748,81517.0,81516.0,0.28284483]
[1743413885976,0.01273748,81517.0,81516.0,0.28784483]
[1743413886179,0.01273748,81517.0,81516.0,0.16228]
[1743413886383,0.245374,81509.0,81501.0,0.261663]
[1743413886649,0.245383,81506.0,81502.0,0.16248]
[1743413886771,0.245383,81506.0,81503.0,0.16248]
[1743413886971,0.3,81508.0,81503.0,0.16248]
[1743413887167,0.3,81508.0,81506.0,0.245378]
[1743413887411,0.3,81508.0,81507.0,0.012268]
[1743413887616,0.00047048,81517.0,81515.0,0.245351]
[1743413887860,0.00047048,81517.0,81516.0,0.28284483]
[1743413888244,0.012267,81516.0,81501.0,0.016269]
[1743413888442,0.012268,81508.0,81502.0,0.28292483]
[1743413888619,0.257643,81508.0,81502.0,0.28292483]
[1743413889025,0.012268,81509.0,81503.0,0.003]
[1743413889447,0.3,81510.0,81503.0,0.003]
[1743413889646,0.3,81511.0,81505.0,0.012269]
[1743413889905,0.3,81511.0,81506.0,0.24538]
[1743413890106,0.3,81511.0,81505.0,0.012269]
[1743413890306,0.3,81511.0,81507.0,0.245376]
[1743413890550,0.545358,81514.0,81507.0,0.257644]
[1743413890747,0.24537,81510.0,81508.0,0.1622]
[1743413891066,0.3,81508.0,81502.0,0.012269]
[1743413891284,0.3,81508.0,81503.0,0.16212]
[1743413891734,0.3,81508.0,81506.0,0.257647]
[1743413891940,0.3,81508.0,81507.0,0.012268]
[1743413892144,0.3,81514.0,81507.0,0.012268]
[1743413892353,0.3,81512.0,81508.0,0.247372]
[1743413892526,0.3,81512.0,81507.0,0.257644]
[1743413893068,0.3,81512.0,81508.0,0.245373]
[1743413893271,0.54536,81513.0,81507.0,0.014268]
[1743413893514,0.3,81513.0,81507.0,0.259644]
[1743413893712,0.4134,81515.0,81512.0,0.012268]
[1743413893921,0.4134,81515.0,81514.0,0.012267]
[1743413893922,0.7134,81515.0,81514.0,0.012267]
[1743413894556,0.3,81514.0,81510.0,0.245367]
[1743413894706,0.3,81514.0,81511.0,0.245364]
[1743413895057,0.3,81514.0,81512.0,0.24536]
[1743413895261,0.3,81514.0,81512.0,0.257628]
[1743413896230,0.3,81514.0,81512.0,0.258628]
[1743413896859,0.3,81514.0,81513.0,0.245359]
[1743413897177,0.4134,81515.0,81514.0,0.257623]
[1743413897317,0.4134,81515.0,81514.0,0.39244868]
[1743413898233,0.4134,81515.0,81514.0,0.39344868]
[1743413899247,0.4134,81515.0,81514.0,0.39444868]
[1743413899661,0.4134,81515.0,81514.0,0.002]
[1743413900284,0.67102,81515.0,81514.0,0.002]
[1743413900664,0.67102,81515.0,81507.0,0.245375]
[1743413900665,0.245362,81513.0,81507.0,0.23572484]
[1743413900871,0.245362,81513.0,81504.0,0.245386]
[1743413901079,0.257639,81511.0,81505.0,0.40618]
[1743413901291,0.3,81514.0,81508.0,0.012268]
[1743413901460,0.3,81514.0,81507.0,0.257645]
[1743413901461,0.3,81514.0,81507.0,0.012268]
[1743413901801,0.3,81514.0,81512.0,0.23929771]
[1743413902008,0.3,81514.0,81513.0,0.257626]
[1743413902160,0.3,81514.0,81513.0,0.39014941]
[1743413902366,0.00047048,81517.0,81516.0,0.25303135]
[1743413902928,0.00047048,81517.0,81516.0,0.26526993]
[1743413903371,0.00047048,81517.0,81516.0,0.38555476]
[1743413903794,0.00047048,81517.0,81516.0,0.37787341]
[1743413904561,0.00047048,81517.0,81516.0,0.39014041]
[1743413906067,0.00047048,81517.0,81516.0,0.39114041]
[1743413906671,0.00047048,81517.0,81516.0,0.39214041]
[1743413908305,0.00047048,81517.0,81516.0,0.13452341]
[1743413908504,0.00047048,81517.0,81516.0,0.29448341]
[1743413908707,0.00047048,81517.0,81516.0,0.55210041]
[1743413912085,0.00047048,81517.0,81516.0,0.62900041]
[1743413912386,0.00047048,81517.0,81516.0,0.64354126]
[1743413913300,0.00047048,81517.0,81516.0,0.69114126]
[1743413913674,0.00047048,81517.0,81516.0,0.53118126]
[1743413913880,0.00047048,81517.0,81516.0,0.69050126]
[1743413914482,0.00047048,81517.0,81516.0,1.91387753]
[1743413915263,0.00047048,81517.0,81516.0,1.91287753]
[1743413915472,0.00047048,81517.0,81516.0,1.91187753]
[1743413915667,0.00047048,81517.0,81516.0,1.91587753]
[1743413915892,0.00047048,81517.0,81516.0,1.91887753]
[1743413918809,0.00047048,81517.0,81516.0,1.74501668]
[1743413918991,0.00047048,81517.0,81516.0,1.77899668]
[1743413919352,0.00047048,81517.0,81516.0,1.79353753]
[1743413919557,0.00047048,81517.0,81516.0,1.77899668]
[1743413921702,0.00047048,81517.0,81516.0,0.13952341]
[1743413921932,0.25808448,81517.0,81516.0,0.13952341]
[1743413922129,0.00047048,81517.0,81516.0,0.17763858]
[1743413922330,0.00047048,81517.0,81516.0,0.01923858]
[1743413922529,0.00047048,81517.0,81516.0,0.17751858]
[1743413922759,0.25808448,81517.0,81516.0,0.17751858]
[1743413922964,0.24581748,81517.0,81516.0,0.01923858]
[1743413923187,0.25808448,81517.0,81516.0,0.01623858]
[1743413923548,0.25808448,81517.0,81516.0,0.01723858]
[1743413923746,0.25808448,81517.0,81516.0,0.01323858]
[1743413924150,0.25808448,81517.0,81516.0,0.01423858]
[1743413924511,0.24581748,81517.0,81516.0,0.01423858]
[1743413925233,0.00047048,81517.0,81516.0,0.01423858]
[1743413925437,0.00047048,81517.0,81516.0,0.14679041]
[1743413925680,0.00047048,81517.0,81516.0,0.39214041]
[1743413927305,0.00047048,81517.0,81516.0,0.37987341]
[1743413928547,0.00047048,81517.0,81516.0,0.39214041]
[1743413931589,0.24581748,81517.0,81516.0,0.17167858]
[1743413931787,0.00047048,81517.0,81516.0,0.17167858]
[1743413932160,0.00047048,81517.0,81516.0,0.41702858]
[1743413932720,0.00047048,81517.0,81516.0,0.42929558]
[1743413933458,0.00047048,81517.0,81516.0,0.41702858]
[1743413933656,0.00047048,81517.0,81516.0,0.17167858]
[1743413933895,0.24581748,81517.0,81516.0,0.17167858]
[1743413934067,0.00047048,81517.0,81516.0,0.17167858]
[1743413934271,0.00047048,81517.0,81516.0,0.41702858]
[1743413934470,0.00047048,81517.0,81516.0,0.42929558]
[1743413935975,0.00047048,81517.0,81516.0,0.42857558]
[1743413936203,0.00047048,81517.0,81516.0,0.17095858]
[1743413936584,0.24581748,81517.0,81516.0,0.17095858]
[1743413936791,0.25808448,81517.0,81516.0,0.17095858]
[1743413936993,0.25808448,81517.0,81516.0,0.002]
[1743413937287,0.25808448,81517.0,81516.0,0.15876]
[1743413937486,0.24581748,81517.0,81516.0,0.15876]
[1743413937708,0.24581748,81517.0,81516.0,0.17097283]
[1743413937908,0.00047048,81517.0,81516.0,0.17097283]
[1743413938086,0.25808448,81517.0,81516.0,0.17097283]
[1743413938284,0.01178549,81517.0,81516.0,0.15876]
[1743413938486,0.25713249,81517.0,81516.0,0.15876]
[1743413938688,0.26939949,81517.0,81516.0,0.17097283]
[1743413939074,0.56939949,81517.0,81516.0,0.15876]
[1743413939661,0.56939949,81517.0,81516.0,0.002]
[1743413939869,0.98279949,81517.0,81516.0,0.002]
[1743413940268,1.00542461,81517.0,81516.0,0.002]
[1743413940728,1.00542461,81517.0,81516.0,0.001]
[1743413941109,0.74781061,81517.0,81516.0,0.001]
[1743413941291,0.99315761,81517.0,81516.0,0.01323629]
[1743413941509,1.00542461,81517.0,81516.0,0.01323629]
[1743413941694,1.00542461,81517.0,81516.0,0.01223629]
[1743413941889,0.245355,81515.0,81513.0,0.15636]
[1743413942142,0.557622,81515.0,81514.0,0.01223629]
[1743413942330,0.245356,81514.0,81513.0,0.15636]
[1743413942513,0.245356,81514.0,81513.0,0.16859629]
[1743413943181,0.257623,81514.0,81513.0,0.16959629]
[1743413943316,0.257623,81514.0,81513.0,0.01323629]
[1743413943317,0.64453801,81514.0,81513.0,0.01323629]
[1743413943510,0.56893801,81514.0,81513.0,0.001]
[1743413943759,0.24537,81510.0,81507.0,0.245377]
[1743413943931,0.24537,81510.0,81506.0,0.24538]
[1743413944149,0.012268,81510.0,81507.0,0.01224357]
[1743413944346,0.01131501,81509.0,81508.0,0.15612]
[1743413944551,0.033935,81509.0,81508.0,0.16836357]
[1743413944776,0.033935,81509.0,81508.0,0.01224357]
[1743413944777,0.291574,81509.0,81508.0,0.01224357]
[1743413945136,0.033935,81509.0,81507.0,0.245377]
[1743413945347,0.033935,81509.0,81508.0,0.25761757]
[1743413945553,0.333935,81509.0,81508.0,0.01224357]
[1743413945997,0.31131501,81509.0,81508.0,0.26988557]
[1743413946377,0.31131501,81509.0,81508.0,0.25761757]
[1743413946577,0.31131501,81509.0,81508.0,0.27188557]
[1743413946773,0.012268,81511.0,81508.0,0.01424357]
[1743413947027,0.245367,81511.0,81508.0,0.01624357]
[1743413947204,0.545368,81512.0,81508.0,0.01624357]
[1743413947467,0.3,81512.0,81510.0,0.245368]
[1743413947859,0.3,81513.0,81511.0,0.26988471]
[1743413948144,0.3,81513.0,81511.0,0.01225171]
[1743413948412,0.3,81513.0,81508.0,0.247372]
[1743413948413,0.257633,81512.0,81508.0,0.002]
[1743413948618,0.257633,81512.0,81508.0,0.245374]
[1743413948619,0.02262789,81511.0,81508.0,0.245374]
[1743413948747,0.545371,81510.0,81508.0,0.002]
[1743413948948,0.545371,81509.0,81508.0,0.004]
[1743413949154,0.545371,81509.0,81508.0,0.002]
[1743413949375,0.545374,81508.0,81503.0,0.245389]
[1743413949570,0.3,81506.0,81504.0,0.245386]
[1743413949775,0.3,81508.0,81506.0,0.245379]
[1743413950724,0.3,81508.0,81507.0,0.257645]
[1743413951104,0.245364,81512.0,81508.0,0.245371]
[1743413951307,0.3,81513.0,81510.0,0.245368]
[1743413951508,0.3,81513.0,81512.0,0.25763]
[1743413951709,0.3,81513.0,81512.0,0.245362]
[1743413951914,0.3,81513.0,81510.0,0.245368]
[1743413952116,0.245359,81514.0,81512.0,0.245362]
[1743413952117,0.3,81514.0,81512.0,0.245362]
[1743413952326,0.545375,81508.0,81502.0,0.012269]
[1743413952572,0.2679969,81513.0,81509.0,0.257638]
[1743413952774,0.25668092,81512.0,81509.0,0.257638]
[1743413953426,0.0226359,81511.0,81509.0,0.257638]
[1743413953804,0.0226359,81511.0,81510.0,0.257636]
[1743413954009,0.0226359,81511.0,81510.0,0.37792083]
[1743413954466,0.3,81516.0,81515.0,0.245353]
[1743413954684,0.3,81516.0,81513.0,0.245359]
[1743413954915,0.557617,81516.0,81515.0,0.01226357]
[1743413955095,0.557617,81516.0,81513.0,0.12028483]
[1743413955289,0.3,81514.0,81513.0,0.12028483]
[1743413955551,0.3,81514.0,81513.0,0.36564383]
[1743413955917,0.3,81514.0,81513.0,0.37791083]
[1743413956346,0.31131769,81516.0,81515.0,0.25762]
[1743413956540,0.31131769,81516.0,81515.0,0.37790483]
[1743413956874,0.3,81516.0,81515.0,0.37990483]
[1743413957290,0.32263774,81516.0,81515.0,0.37990483]
[1743413957448,0.02263774,81516.0,81515.0,0.37990483]
[1743413957847,0.02263774,81516.0,81515.0,0.39644568]
[1743413958053,0.03395699,81516.0,81515.0,0.39644568]
[1743413958453,0.01131925,81516.0,81515.0,0.39644568]
[1743413958903,0.01205469,81528.0,81527.0,0.257582]
[1743413959120,0.0761,81552.0,81548.0,0.245253]
[1743413959121,0.245243,81552.0,81548.0,0.245253]
[1743413959324,0.4134,81551.0,81549.0,0.15724]
[1743413959469,0.4134,81551.0,81550.0,0.25751]
[1743413959677,0.43603232,81551.0,81550.0,0.25751]
[1743413959897,0.3,81550.0,81549.0,0.414753]
[1743413960281,0.31235165,81550.0,81549.0,0.402491]
[1743413960686,0.31235165,81550.0,81549.0,0.414753]
[1743413960893,0.01235165,81550.0,81549.0,0.52277583]
[1743413961102,0.001,81550.0,81549.0,0.53403783]
[1743413961648,0.0257097,81550.0,81549.0,0.15624]
[1743413961815,0.012262,81548.0,81542.0,0.257534]
[1743413961974,0.3,81545.0,81544.0,0.157]
[1743413962181,0.3,81545.0,81544.0,0.169263]
[1743413963041,0.301,81548.0,81545.0,0.245263]
[1743413963215,0.301,81548.0,81546.0,0.25752]
[1743413964004,0.001,81548.0,81547.0,0.012262]
[1743413964199,0.01247852,81550.0,81548.0,0.257516]
[1743413964619,0.3,81554.0,81553.0,0.245239]
[1743413964849,0.3,81554.0,81553.0,0.37778483]
[1743413965056,0.7134,81566.0,81565.0,0.257463]
[1743413965254,0.4134,81572.0,81571.0,0.257444]
[1743413965459,0.4134,81572.0,81568.0,0.011259]
[1743413965663,0.42556958,81572.0,81571.0,0.012259]
[1743413967228,0.42556958,81572.0,81571.0,0.13154383]
[1743413967431,0.01216958,81572.0,81571.0,0.13054383]
[1743413967850,0.012255,81596.0,81589.0,0.012256]
[1743413968062,0.4134,81593.0,81590.0,0.15828]
[1743413968195,0.4134,81593.0,81590.0,0.403407]
[1743413968404,0.3,81592.0,81591.0,0.245124]
[1743413968610,0.312256,81592.0,81591.0,0.01195382]
[1743413969019,0.012256,81591.0,81590.0,0.15828]
[1743413970151,0.012256,81591.0,81590.0,0.17023382]
[1743413970694,0.012256,81591.0,81590.0,0.15828]
[1743413970833,0.014256,81591.0,81590.0,0.15828]
[1743413971177,0.014256,81591.0,81575.0,0.245172]
[1743413971178,0.245156,81581.0,81577.0,1.22337627]
[1743413971389,0.245156,81581.0,81575.0,0.245172]
[1743413971390,0.557416,81580.0,81578.0,0.17007382]
[1743413971691,0.012258,81579.0,81578.0,0.17007382]
[1743413971903,0.257416,81580.0,81578.0,0.17007382]
[1743413972101,0.245156,81581.0,81578.0,0.17007382]
[1743413972313,0.012257,81580.0,81578.0,0.17007382]
[1743413972468,0.012257,81582.0,81578.0,0.17007382]
[1743413972679,0.25741,81582.0,81578.0,0.17007382]
[1743413972883,0.245158,81580.0,81578.0,0.17007382]
[1743413973067,0.257412,81581.0,81578.0,0.17007382]
[1743413973269,0.012257,81581.0,81578.0,0.17007382]
[1743413973487,0.257413,81581.0,81578.0,0.17007382]
[1743413973691,0.257417,81580.0,81579.0,0.15772]
[1743413973888,0.257417,81580.0,81579.0,0.16963611]
[1743413974156,0.257413,81581.0,81579.0,0.16963611]
[1743413974488,0.012257,81580.0,81579.0,0.16963611]
[1743413975536,0.012257,81580.0,81579.0,0.17063611]
[1743413976314,0.012257,81580.0,81579.0,0.17163611]
[1743413976868,0.257415,81580.0,81579.0,0.17063611]
[1743413977024,0.24515,81583.0,81579.0,0.41679611]
[1743413977241,0.01919388,81584.0,81580.0,0.245157]
[1743413977403,0.245141,81586.0,81581.0,0.245154]
[1743413977604,0.245143,81585.0,81581.0,0.25696952]
[1743413977812,0.245141,81586.0,81582.0,0.24515]
[1743413978006,0.245143,81585.0,81581.0,0.25697052]
[1743413978325,0.245143,81585.0,81582.0,0.01178745]
[1743413978545,0.012257,81580.0,81579.0,0.15772]
[1743413978735,0.257415,81580.0,81579.0,0.16950704]
[1743413978935,0.257415,81580.0,81579.0,0.16878704]